bitfinex/quotes_SOLUSD_20240913
["timestamp","ask_amount","ask_price","bid_price","bid_amount"]
[1726265234511,7.1679,139.51,139.47,6.3188]
[1726265234712,23.776884,139.5,139.47,6.3188]
[1726265234925,23.776884,139.5,139.45,15.011]
[1726265235130,30.945684,139.5,139.45,15.011]
[1726265235304,0.37647,139.49,139.45,15.011]
[1726265235517,7.54577,139.49,139.45,15.011]
[1726265235712,23.776884,139.48,139.45,15.011]
[1726265237213,30.946584,139.48,139.43,6.3188]
[1726265237410,0.12549,139.47,139.43,6.3188]
[1726265238021,23.776884,139.46,139.42,16.5556]
[1726265238225,7.1705,139.46,139.42,16.5556]
[1726265238616,23.776884,139.44,139.42,16.5556]
[1726265238817,23.776884,139.44,139.4,6.0699]
[1726265239734,23.776884,139.44,139.39,16.5556]
[1726265239735,30.948484,139.44,139.39,16.5556]
[1726265240615,23.776884,139.42,139.36,22.0564]
[1726265242344,7.1726,139.42,139.36,22.0564]
[1726265242721,23.776884,139.41,139.36,22.0564]
[1726265242922,30.949984,139.41,139.36,22.0564]
[1726265243924,23.776884,139.39,139.35,0.2586254]
[1726265244122,7.1731,139.41,139.35,0.2586254]
[1726265244318,0.12549,139.42,139.35,0.2586254]
[1726265244319,23.776884,139.4,139.35,0.2586254]
[1726265244829,23.902374,139.41,139.35,0.2586254]
[1726265246038,0.12549,139.4,139.35,0.2586254]
[1726265246240,0.25098,139.4,139.35,0.2586254]
[1726265246829,23.776884,139.39,139.35,0.2586254]
[1726265247737,30.950984,139.39,139.35,0.2586254]
[1726265248039,0.12549,139.38,139.35,0.2586254]
[1726265249723,23.776884,139.39,139.35,0.2586254]
[1726265250244,24.027864,139.4,139.35,0.2586254]
[1726265251016,7.1727,139.42,139.35,0.2586254]
[1726265252149,23.776884,139.41,139.35,0.2586254]
[1726265252922,30.950084,139.41,139.35,0.2586254]
[1726265254039,7.42468,139.4,139.35,0.2586254]
[1726265255042,23.776884,139.39,139.35,0.2586254]
[1726265255428,30.950984,139.39,139.35,0.2586254]
[1726265255628,23.776884,139.39,139.35,0.2586254]
[1726265255825,0.12549,139.38,139.35,0.2586254]
[1726265257946,28.99598,139.38,139.35,0.2586254]
[1726265258149,23.776884,139.37,139.35,0.2586254]
[1726265262543,7.1737,139.4,139.35,0.2586254]
[1726265262852,16.522,139.42,139.35,0.2586254]
[1726265262853,7.1742,139.39,139.35,0.2586254]
[1726265263360,7.1747,139.38,139.35,0.2586254]
[1726265263733,31.203064,139.37,139.35,0.2586254]
[1726265263933,24.027864,139.37,139.35,0.2586254]
[1726265264439,16.522,139.42,139.35,0.2586254]
[1726265264440,7.1739,139.4,139.35,0.2586254]
[1726265265366,25.32506194,139.43,139.35,0.2586254]
[1726265265367,7.39446194,139.43,139.35,0.2586254]
[1726265265661,21.57,139.42,139.35,0.2586254]
[1726265265859,0.12549,139.41,139.35,0.2586254]
[1726265266246,52.645674,139.41,139.35,0.2586254]
[1726265266448,0.12549,139.41,139.35,0.2586254]
[1726265267337,0.12549,139.42,139.35,0.2586254]
[1726265267839,0.25098,139.42,139.35,0.2586254]
[1726265268042,0.12549,139.41,139.35,0.2586254]
[1726265270770,24.027864,139.42,139.35,0.2586254]
[1726265270961,0.25098,139.42,139.35,0.2586254]
[1726265273259,2.85569523,139.47,139.36,22.5306]
[1726265273465,1.25000202,139.48,139.36,22.5306]
[1726265273645,22.82000202,139.48,139.36,22.5306]
[1726265273848,7.1711,139.45,139.36,22.5306]
[1726265274539,24.027864,139.44,139.36,22.5306]
[1726265275142,0.12549,139.46,139.36,22.5306]
[1726265275348,24.153354,139.47,139.36,22.5306]
[1726265275553,45.723354,139.47,139.36,22.5306]
[1726265277350,1.25000202,139.48,139.4,0.25098]
[1726265277564,0.2585968,139.49,139.42,24.027864]
[1726265277776,0.2585968,139.49,139.43,15.13099]
[1726265277938,0.2585968,139.49,139.44,6.0395]
[1726265278343,0.2585968,139.49,139.45,1.30251822]
[1726265278575,0.2585968,139.49,139.46,1.30242482]
[1726265279557,0.2585968,139.49,139.45,1.30255802]
[1726265279750,0.2585968,139.49,139.46,1.39944536]
[1726265279956,0.2585968,139.49,139.44,6.0395]
[1726265280154,0.2585968,139.49,139.45,1.39945032]
[1726265280467,0.2585968,139.49,139.44,6.0395]
[1726265287058,7.42048,139.48,139.43,15.0055]
[1726265287461,23.902374,139.47,139.43,15.0055]
[1726265288275,0.12549,139.46,139.43,15.0055]
[1726265288463,0.12549,139.46,139.4,6.4607]
[1726265288663,0.25098,139.46,139.4,6.4607]
[1726265289574,23.902374,139.45,139.4,6.4607]
[1726265290275,0.12549,139.45,139.4,6.4607]
[1726265290656,0.25098,139.45,139.4,6.4607]
[1726265290855,0.12549,139.45,139.39,16.6593]
[1726265291072,0.25098,139.45,139.39,16.6593]
[1726265291458,0.12549,139.45,139.39,16.6593]
[1726265291969,21.8285968,139.49,139.39,16.6593]
[1726265292468,28.9976968,139.49,139.39,16.6593]
[1726265293279,24.027864,139.48,139.39,16.6593]
[1726265293981,45.597864,139.48,139.39,16.6593]
[1726265294179,0.25098,139.47,139.39,16.6593]
[1726265294569,21.69549,139.46,139.39,16.6593]
[1726265294975,23.902374,139.45,139.39,16.6593]
[1726265295291,0.25098,139.44,139.39,16.6593]
[1726265296577,0.12549,139.43,139.39,16.6593]
[1726265296763,23.902374,139.42,139.35,16.2158254]
[1726265297278,0.12549,139.41,139.35,16.2158254]
[1726265297463,0.25098,139.41,139.35,16.2158254]
[1726265297786,23.902374,139.4,139.35,16.2158254]
[1726265300158,24.027864,139.41,139.35,16.2158254]
[1726265300362,0.25098,139.41,139.35,16.2158254]
[1726265301778,23.902374,139.42,139.35,16.2158254]
[1726265301980,0.12549,139.42,139.35,16.2158254]
[1726265302190,23.0609,139.45,139.35,16.2158254]
[1726265302389,7.1706,139.46,139.36,1.40216245]
[1726265302778,7.1712,139.45,139.36,1.40216245]
[1726265303681,24.153354,139.44,139.35,16.2158254]
[1726265305304,24.153354,139.44,139.36,1.40125692]
[1726265305470,24.153354,139.44,139.35,16.2158254]
[1726265306092,24.027864,139.42,139.35,16.2158254]
[1726265308395,0.12549,139.41,139.35,16.2158254]
[1726265308598,0.25098,139.41,139.35,16.2158254]
[1726265308796,1.25003998,139.48,139.37,24.027864]
[1726265308987,0.2585968,139.49,139.39,16.6638]
[1726265309491,7.4275968,139.49,139.39,16.6638]
[1726265309872,28.9975968,139.49,139.39,16.6638]
[1726265310280,0.25098,139.47,139.39,16.6638]
[1726265310486,7.42128,139.47,139.39,16.6638]
[1726265310695,23.776884,139.46,139.39,16.6638]
[1726265311781,45.723354,139.47,139.39,16.6638]
[1726265311981,0.12549,139.46,139.39,16.6638]
[1726265320993,0.25098,139.48,139.4,6.3539]
[1726265322403,0.3840868,139.49,139.4,6.3539]
[1726265322606,0.2585968,139.49,139.4,6.3539]
[1726265322807,0.2585968,139.49,139.42,23.902374]
[1726265323003,0.2585968,139.49,139.44,21.4929]
[1726265323316,0.2585968,139.49,139.46,15.139]
[1726265325494,0.2586111,139.54,139.48,6.3539]
[1726265325714,0.2586111,139.54,139.49,39.166864]
[1726265331321,0.2586111,139.54,139.49,15.139]
[1726265331695,0.2586111,139.54,139.5,23.776884]
[1726265331904,0.2586111,139.54,139.51,0.25098]
[1726265332714,0.2586111,139.54,139.52,6.3539]
[1726265332918,0.2586111,139.54,139.53,15.139]
[1726265341899,0.2586111,139.54,139.53,39.166864]
[1726265342101,0.2586111,139.54,139.53,39.292354]
[1726265342725,0.2586111,139.58,139.54,44.027864]
[1726265342923,0.2586111,139.58,139.56,22.2098]
[1726265343227,0.2586111,139.58,139.57,24.153354]
[1726265346515,0.2586111,139.62,139.59,24.027864]
[1726265346738,0.2586111,139.62,139.6,0.12549]
[1726265347041,0.2586111,139.62,139.61,46.237664]
[1726265347337,0.2586111,139.62,139.61,46.363154]
[1726265348328,0.2586111,139.62,139.61,66.363154]
[1726265348911,0.2586111,139.66,139.62,44.027864]
[1726265349117,0.2586111,139.66,139.64,24.027864]
[1726265349317,0.2586111,139.66,139.65,25.58501832]
[1726265350325,0.2586111,139.66,139.65,24.153354]
[1726265350735,0.2586111,139.66,139.65,0.12549]
[1726265350935,0.2586111,139.66,139.64,23.776884]
[1726265351141,0.2586111,139.66,139.62,20.0]
[1726265351439,0.2586111,139.66,139.61,22.2098]
[1726265351641,0.2586111,139.66,139.61,15.7888]
[1726265351844,0.2586111,139.66,139.57,22.2098]
[1726265354042,0.2586111,139.66,139.57,15.7888]
[1726265356938,6.2215,139.65,139.55,44.027864]
[1726265357143,13.3827,139.65,139.55,23.902374]
[1726265357315,31.314654,139.64,139.54,15.6213]
[1726265357515,24.153354,139.64,139.54,15.6213]
[1726265358037,31.314654,139.64,139.54,15.6213]
[1726265358223,0.2586111,139.66,139.55,6.1837]
[1726265358434,0.2586111,139.66,139.59,20.25098]
[1726265358628,0.2586111,139.66,139.6,0.12549]
[1726265359338,0.2586111,139.66,139.63,0.25098]
[1726265359728,0.2586111,139.66,139.64,0.12549]
[1726265360115,0.2586111,139.66,139.63,0.25098]
[1726265360541,0.2586111,139.66,139.63,0.12549]
[1726265360739,0.2586111,139.66,139.63,0.25098]
[1726265362718,0.2586111,139.66,139.62,23.902374]
[1726265362916,0.2586111,139.66,139.61,20.0]
[1726265363114,0.2586111,139.66,139.59,20.0]
[1726265364241,0.2586111,139.66,139.6,24.027864]
[1726265364542,0.2586111,139.66,139.61,20.12549]
[1726265366645,0.2586111,139.66,139.6,0.25098]
[1726265367516,0.2586111,139.66,139.6,0.12549]
[1726265367938,0.2586111,139.66,139.55,6.1837]
[1726265368646,16.0806,139.65,139.54,15.7391]
[1726265370026,16.0806,139.65,139.55,20.0]
[1726265370629,16.0806,139.65,139.56,23.776884]
[1726265372747,16.0806,139.65,139.52,20.2586111]
[1726265372748,45.567864,139.64,139.52,20.2586111]
[1726265372933,24.027864,139.64,139.52,20.2586111]
[1726265373244,31.189264,139.64,139.52,20.2586111]
[1726265373549,24.027864,139.64,139.52,20.2586111]
[1726265374031,24.027864,139.64,139.53,24.153354]
[1726265374351,0.25098,139.64,139.55,23.776884]
[1726265375350,21.79098,139.64,139.55,23.776884]
[1726265375543,6.4923,139.63,139.53,0.37647]
[1726265375747,6.4923,139.63,139.53,24.153354]
[1726265375946,15.1544,139.61,139.52,0.2586111]
[1726265379345,6.4923,139.59,139.52,0.2586111]
[1726265380626,15.1544,139.58,139.52,0.2586111]
[1726265387262,0.2586111,139.66,139.54,54.027864]
[1726265387559,0.2586111,139.66,139.56,44.027864]
[1726265387762,0.2586111,139.66,139.58,0.12549]
[1726265387940,0.2586111,139.66,139.58,44.027864]
[1726265388143,0.2586111,139.66,139.59,0.25098]
[1726265388349,0.2586111,139.66,139.6,0.12549]
[1726265388759,0.2586111,139.66,139.61,23.902374]
[1726265388958,0.2586111,139.66,139.64,0.12549]
[1726265389669,0.2586111,139.66,139.65,23.776884]
[1726265391138,0.2586111,139.66,139.62,0.25098]
[1726265391350,0.2586111,139.66,139.63,0.25098]
[1726265391550,0.2586111,139.66,139.63,23.776884]
[1726265393050,0.2586111,139.66,139.64,1.43018283]
[1726265393267,0.2586111,139.66,139.65,1.43008041]
[1726265394263,0.2586111,139.66,139.64,1.43008041]
[1726265394465,0.2586111,139.66,139.65,1.429978]
[1726265395354,0.2586111,139.66,139.64,1.429978]
[1726265395555,0.2586111,139.66,139.65,1.42997799]
[1726265396770,0.2586111,139.66,139.64,1.42997799]
[1726265396987,0.2586111,139.66,139.65,1.42987559]
[1726265397965,0.2586111,139.66,139.64,1.42987559]
[1726265398147,0.2586111,139.66,139.63,23.902374]
[1726265399366,0.2586111,139.66,139.64,1.42893543]
[1726265399575,0.2586111,139.66,139.65,1.4288331]
[1726265400294,0.2586111,139.66,139.64,1.43197619]
[1726265400474,0.2586111,139.66,139.62,20.0]
[1726265401774,0.2586111,139.66,139.63,1.43115574]
[1726265402076,0.2586111,139.66,139.64,23.776884]
[1726265402251,0.2586111,139.66,139.63,23.902374]
[1726265402571,0.2586111,139.66,139.64,1.43105532]
[1726265402772,0.2586111,139.66,139.63,23.902374]
[1726265403549,0.2586111,139.66,139.63,23.776884]
[1726265403970,0.2586111,139.66,139.62,20.0]
[1726265404154,0.2586111,139.66,139.63,1.43029927]
[1726265404359,0.2586111,139.66,139.57,30.62561785]
[1726265404360,0.2586111,139.66,139.58,1.43199965]
[1726265404577,0.2586111,139.66,139.59,10.62561785]
[1726265404774,0.2586111,139.66,139.6,21.43200284]
[1726265404951,0.2586111,139.66,139.61,1.43190026]
[1726265405348,0.2586111,139.66,139.62,23.776884]
[1726265405558,0.2586111,139.66,139.63,1.43200246]
[1726265405756,0.2586111,139.66,139.64,24.027864]
[1726265405974,0.2586111,139.66,139.65,0.12549]
[1726265406278,0.2586111,139.66,139.65,24.75397489]
[1726265407053,0.2586111,139.66,139.65,44.75397489]
[1726265411276,0.2586111,139.66,139.65,44.153354]
[1726265411782,0.2586111,139.66,139.65,0.37647]
[1726265411976,0.2586111,139.66,139.61,0.25098]
[1726265412189,0.2586111,139.66,139.62,0.12549]
[1726265413083,0.2586111,139.66,139.63,0.25098]
[1726265413262,0.2586111,139.66,139.64,0.12549]
[1726265414402,0.2586111,139.66,139.65,44.027864]
[1726265414565,0.2586111,139.66,139.65,44.153354]
[1726265417781,0.2586111,139.66,139.65,24.153354]
[1726265418092,0.2586111,139.66,139.65,44.153354]
[1726265418389,0.2586111,139.66,139.65,43.776884]
[1726265419668,0.2586111,139.66,139.65,43.902374]
[1726265419870,0.2586111,139.66,139.65,44.153354]
[1726265422781,0.2586111,139.66,139.65,43.776884]
[1726265423003,0.2586111,139.66,139.65,23.776884]
[1726265423576,0.2586111,139.66,139.61,20.0]
[1726265423787,0.2586111,139.66,139.59,10.62561785]
[1726265424987,0.2586111,139.66,139.61,0.25098]
[1726265425784,0.2586111,139.66,139.61,1.68055382]
[1726265425971,0.2586111,139.66,139.63,0.12549]
[1726265426288,0.2586111,139.66,139.63,1.68034905]
[1726265426490,0.2586111,139.66,139.64,23.902374]
[1726265426687,0.2586111,139.66,139.65,25.33234341]
[1726265427574,0.2586111,139.66,139.65,23.902374]
[1726265427786,0.2586111,139.66,139.64,1.43028486]
[1726265427993,0.2586111,139.66,139.63,0.25098]
[1726265428293,0.2586111,139.66,139.64,20.12549]
[1726265429275,0.2586111,139.66,139.65,1.42946555]
[1726265430190,0.2586111,139.66,139.65,23.776884]
[1726265430413,0.2586111,139.66,139.64,20.12549]
[1726265430414,0.2586111,139.66,139.64,0.12549]
[1726265430596,0.2586111,139.66,139.64,1.55665454]
[1726265432294,0.2586111,139.66,139.63,0.25098]
[1726265433294,0.2586111,139.66,139.59,20.0]
[1726265433483,0.2586111,139.66,139.59,28.30065161]
[1726265434508,0.2586111,139.66,139.62,23.776884]
[1726265434796,0.2586111,139.66,139.63,20.39841823]
[1726265435898,0.2586111,139.66,139.64,23.776884]
[1726265436074,0.2586111,139.66,139.65,0.39836117]
[1726265438298,0.2586111,139.66,139.64,23.776884]
[1726265440074,0.2586111,139.66,139.65,0.37647]
[1726265441080,0.2586111,139.66,139.65,20.37647]
[1726265441287,0.2586111,139.66,139.65,44.153354]
[1726265441473,0.2586111,139.66,139.65,54.77897185]
[1726265441685,0.2586111,139.66,139.65,63.07962346]
[1726265442308,6.67709804,139.69,139.67,20.25098]
[1726265442822,6.67709804,139.69,139.68,0.12549]
[1726265444704,6.67709804,139.69,139.68,44.153354]
[1726265452215,6.67709804,139.69,139.68,43.776884]
[1726265453726,6.67709804,139.69,139.68,44.153354]
[1726265455221,6.67709804,139.69,139.68,43.776884]
[1726265456824,6.67709804,139.69,139.67,23.776884]
[1726265457117,6.67709804,139.69,139.68,43.776884]
[1726265457317,6.67709804,139.69,139.68,23.776884]
[1726265458307,6.67709804,139.69,139.66,0.25098]
[1726265458610,6.67709804,139.69,139.66,0.12549]
[1726265458811,6.67709804,139.69,139.67,0.12549]
[1726265459018,6.67709804,139.69,139.67,23.902374]
[1726265459610,6.67709804,139.69,139.67,23.776884]
[1726265459817,6.67709804,139.69,139.68,0.56446278]
[1726265460725,6.67709804,139.69,139.64,20.12549]
[1726265461028,6.67709804,139.69,139.63,8.30065161]
[1726265462107,6.67709804,139.69,139.64,20.0]
[1726265462527,6.67709804,139.69,139.65,23.776884]
[1726265463810,6.67709804,139.69,139.64,20.0]
[1726265464431,6.67709804,139.69,139.65,23.776884]
[1726265464906,6.67709804,139.69,139.64,20.0]
[1726265465617,6.67709804,139.69,139.63,8.30065161]
[1726265465933,6.67709804,139.69,139.58,15.9864]
[1726265466110,6.67709804,139.69,139.58,25.55035118]
[1726265467125,6.67709804,139.69,139.59,0.25098]
[1726265467623,6.67709804,139.69,139.59,20.12549]
[1726265468324,6.67709804,139.69,139.61,20.0]
[1726265469432,6.67709804,139.69,139.6,0.12549]
[1726265469726,6.3877,139.68,139.6,0.12549]
[1726265469932,15.7162,139.67,139.58,9.68944118]
[1726265470307,15.7162,139.67,139.59,9.68944118]
[1726265471027,15.7162,139.67,139.61,0.12549]
[1726265471212,15.7162,139.67,139.61,23.902374]
[1726265473323,15.7162,139.67,139.61,23.776884]
[1726265473713,15.7162,139.67,139.63,23.776884]
[1726265473920,15.7162,139.67,139.64,20.0]
[1726265475031,6.67709804,139.69,139.68,20.25098]
[1726265475333,6.67709804,139.69,139.68,54.28860153]
[1726265476811,6.67709804,139.69,139.68,52.85800285]
[1726265477212,6.67709804,139.69,139.68,54.28878584]
[1726265477436,6.67709804,139.69,139.68,64.59146068]
[1726265477838,6.67709804,139.69,139.68,63.16067769]
[1726265478930,6.67709804,139.69,139.68,64.59143367]
[1726265481114,6.67709804,139.69,139.68,63.16067769]
[1726265486041,3.64909968,139.69,139.68,63.16067769]
[1726265488038,3.64909968,139.69,139.68,39.25830369]
[1726265488536,3.64909968,139.69,139.68,39.00732369]
[1726265489119,3.64909968,139.69,139.68,19.00732369]
[1726265490641,3.64909968,139.69,139.68,39.13281369]
[1726265490944,3.64909968,139.69,139.68,63.16067769]
[1726265493039,3.64909968,139.69,139.68,43.16067769]
[1726265494255,3.64909968,139.69,139.68,63.16067769]
[1726265510255,3.64909968,139.69,139.68,64.19618418]
[1726265510446,3.64909968,139.69,139.68,63.16067769]
[1726265512458,3.64909968,139.69,139.68,64.20381749]
[1726265515144,3.64909968,139.69,139.68,63.16067769]
[1726265515548,3.64909968,139.69,139.68,64.20378777]
[1726265516645,3.64909968,139.69,139.68,64.44587583]
[1726265519769,3.64909968,139.69,139.68,73.6098808]
[1726265521062,3.64909968,139.69,139.68,64.44578381]
[1726265522368,0.2586111,139.7,139.69,54.33053884]
[1726265522569,0.2586111,139.7,139.69,54.45602884]
[1726265524875,0.2586111,139.74,139.69,63.16067769]
[1726265525052,0.2586111,139.74,139.7,0.12549]
[1726265525252,0.2586111,139.74,139.71,20.25098]
[1726265525452,0.2586111,139.74,139.73,0.25098]
[1726265525651,0.2586111,139.74,139.73,20.37647]
[1726265526656,0.2586111,139.74,139.73,54.45602884]
[1726265526860,0.2586111,139.74,139.73,79.47273792]
[1726265527059,0.2586111,139.74,139.73,78.18797769]
[1726265527570,1e-08,139.74,139.73,78.18797769]
[1726265527777,6.3361111,139.83,139.76,23.776884]
[1726265528078,6.3361111,139.83,139.78,44.027864]
[1726265528280,6.3361111,139.83,139.78,44.153354]
[1726265529363,6.3361111,139.83,139.78,54.45602884]
[1726265529364,0.2586111,139.83,139.78,54.45602884]
[1726265530877,0.2586111,139.83,139.78,44.153354]
[1726265535263,6.0775,139.82,139.78,44.153354]
[1726265535674,6.0775,139.82,139.78,43.902374]
[1726265535867,6.0775,139.82,139.78,20.12549]
[1726265536078,6.0775,139.82,139.76,20.0]
[1726265536491,16.3895111,139.79,139.74,8.70464885]
[1726265537880,16.3895111,139.79,139.75,43.776884]
[1726265538683,16.3895111,139.79,139.76,0.25098]
[1726265538989,16.3895111,139.79,139.75,20.12549]
[1726265540090,16.3895111,139.79,139.75,0.12549]
[1726265540258,16.3895111,139.79,139.73,23.776884]
[1726265540586,6.0144,139.78,139.72,10.30267484]
[1726265541670,6.0144,139.78,139.73,20.37647]
[1726265544088,6.0144,139.78,139.73,20.0]
[1726265544986,6.0144,139.78,139.75,0.25098]
[1726265545180,6.0144,139.78,139.76,23.902374]
[1726265545567,6.0144,139.78,139.77,1.42933734]
[1726265546289,6.0144,139.78,139.76,23.902374]
[1726265546982,6.0144,139.78,139.77,1.42841697]
[1726265547287,16.3895111,139.79,139.77,21.42841697]
[1726265547798,16.3895111,139.79,139.78,23.776884]
[1726265548167,16.3895111,139.79,139.76,20.12549]
[1726265548588,0.2586111,139.79,139.77,24.027864]
[1726265550389,0.2586111,139.79,139.77,23.776884]
[1726265551092,0.2586111,139.79,139.76,0.12549]
[1726265551283,0.2586111,139.79,139.76,20.0]
[1726265566509,0.2586111,139.79,139.72,20.0]
[1726265566692,0.2586111,139.79,139.71,20.0]
[1726265567710,0.2586111,139.79,139.71,30.30267484]
[1726265568386,0.2586111,139.79,139.73,20.0]
[1726265568589,0.2586111,139.79,139.74,1.42938921]
[1726265570819,0.2586111,139.79,139.73,20.12549]
[1726265570998,0.2586111,139.79,139.75,20.0]
[1726265572613,0.2586111,139.79,139.76,24.027864]
[1726265575221,0.2586111,139.79,139.77,20.0]
[1726265577713,0.2586111,139.79,139.73,20.0]
[1726265578506,0.2586111,139.79,139.73,10.30267484]
[1726265578991,0.2586111,139.79,139.74,20.0]
[1726265579419,0.2586111,139.79,139.75,1.43000232]
[1726265579613,0.2586111,139.79,139.76,23.902374]
[1726265579820,0.2586111,139.79,139.77,1.42979769]
[1726265580507,0.2586111,139.79,139.77,20.12549]
[1726265580720,0.2586111,139.79,139.78,23.776884]
[1726265580923,0.2586111,139.79,139.77,23.902374]
[1726265582210,0.2586111,139.79,139.76,20.25098]
[1726265586211,0.2586111,139.79,139.76,20.0]
[1726265586411,0.2586111,139.79,139.69,15.9163]
[1726265586727,0.2586111,139.79,139.7,26.47528773]
[1726265587608,0.2586111,139.79,139.71,10.30267484]
[1726265587827,0.2586111,139.79,139.72,20.12549]
[1726265588046,0.2586111,139.79,139.74,20.0]
[1726265588220,0.2586111,139.79,139.75,0.385792]
[1726265591228,0.2586111,139.79,139.76,20.0]
[1726265591610,0.2586111,139.79,139.75,23.902374]
[1726265591805,0.2586111,139.79,139.76,20.0]
[1726265594630,0.2586111,139.79,139.77,24.153354]
[1726265595020,0.2586111,139.79,139.78,20.0]
[1726265599207,0.2586111,139.79,139.73,0.25098]
[1726265599413,0.2586111,139.79,139.74,0.12549]
[1726265603849,0.2586111,139.79,139.74,0.25098]
[1726265604537,0.2586111,139.79,139.75,20.12549]
[1726265604833,0.2586111,139.79,139.76,0.25098]
[1726265605522,0.2586111,139.79,139.77,0.12549]
[1726265606236,0.2586111,139.79,139.76,0.25098]
[1726265606820,0.2586111,139.79,139.77,0.12549]
[1726265611942,0.2586111,139.79,139.75,20.0]
[1726265612529,0.2586111,139.79,139.72,17.77325812]
[1726265613135,0.2586111,139.79,139.73,23.776884]
[1726265613348,0.2586111,139.79,139.73,34.07955884]
[1726265613754,0.2586111,139.79,139.76,20.25098]
[1726265613951,0.2586111,139.79,139.78,20.0]
[1726265614449,0.2586111,139.79,139.77,23.776884]
[1726265614843,0.2586111,139.79,139.78,20.0]
[1726265619634,0.2586111,139.79,139.74,23.902374]
[1726265619841,0.2586111,139.79,139.75,20.12549]
[1726265620028,0.2586111,139.79,139.75,0.12549]
[1726265620233,0.2586111,139.79,139.76,20.0]
[1726265621038,0.2586111,139.79,139.75,0.25098]
[1726265621356,0.2586111,139.79,139.76,20.0]
[1726265621949,0.2586111,139.79,139.75,44.027864]
[1726265624855,0.2586111,139.79,139.76,0.12549]
[1726265625042,0.2586111,139.79,139.76,24.153354]
[1726265625231,0.2586111,139.79,139.77,20.0]
[1726265627936,0.2586111,139.79,139.78,24.027864]
[1726265628147,0.2586111,139.79,139.78,24.153354]
[1726265628527,0.2586111,139.79,139.71,25.28864706]
[1726265628728,0.2586111,139.79,139.75,23.776884]
[1726265628947,0.2586111,139.79,139.77,23.776884]
[1726265629345,0.2586111,139.79,139.78,0.37647]
[1726265630645,0.2586111,139.79,139.77,23.776884]
[1726265631069,0.2586111,139.79,139.78,20.37647]
[1726265631274,0.2586111,139.79,139.78,44.153354]
[1726265631764,0.2586111,139.79,139.74,0.12549]
[1726265631934,0.2586111,139.79,139.77,20.0]
[1726265632450,0.2586111,139.79,139.76,24.027864]
[1726265632650,0.2586111,139.79,139.77,20.0]
[1726265633358,0.2586111,139.79,139.78,44.153354]
[1726265634743,0.2586111,139.79,139.78,43.776884]
[1726265634944,0.2586111,139.79,139.78,44.153354]
[1726265638954,0.2586111,139.79,139.78,20.0]
[1726265639663,0.2586111,139.79,139.74,20.0]
[1726265639959,0.2586111,139.79,139.74,29.73074706]
[1726265640360,0.2586111,139.79,139.77,24.027864]
[1726265640569,0.2586111,139.79,139.78,20.0]
[1726265640956,0.2586111,139.79,139.77,24.027864]
[1726265641260,0.2586111,139.79,139.78,20.0]
[1726265642461,0.2586111,139.79,139.75,20.12549]
[1726265642671,0.2586111,139.79,139.77,20.0]
[1726265642841,0.2586111,139.79,139.71,26.53582646]
[1726265643465,15.9035111,139.79,139.71,25.28864706]
[1726265644369,15.9035111,139.79,139.72,23.902374]
[1726265644661,15.9035111,139.79,139.75,20.0]
[1726265644846,15.9035111,139.79,139.71,9.73074706]
[1726265645942,15.9035111,139.79,139.72,24.153354]
[1726265646558,15.9035111,139.79,139.73,20.0]
[1726265649878,6.2941,139.78,139.7,15.697914]
[1726265650079,15.6449,139.77,139.7,7.47643182]
[1726265650372,15.6449,139.77,139.66,1.24734368]
[1726265650580,15.6449,139.77,139.66,10.97809074]
[1726265650865,15.6449,139.77,139.67,9.73074706]
[1726265651557,15.6449,139.77,139.68,43.776884]
[1726265651754,15.6449,139.77,139.68,53.50763106]
[1726265652674,15.6449,139.77,139.69,0.25098]
[1726265653973,15.6449,139.77,139.69,0.12549]
[1726265654174,6.2941,139.76,139.68,0.25098]
[1726265654565,15.6449,139.75,139.68,0.25098]
[1726265654766,15.6449,139.75,139.68,0.12549]
[1726265654968,6.2941,139.74,139.65,7.47920018]
[1726265655154,6.2941,139.74,139.64,9.98935816]
[1726265655481,6.2941,139.74,139.65,9.73074706]
[1726265655781,6.2941,139.74,139.66,0.62382411]
[1726265656165,6.2941,139.74,139.67,0.12549]
[1726265656359,6.2941,139.74,139.68,20.0]
[1726265657077,6.2941,139.74,139.68,20.6257935]
[1726265657753,6.2941,139.74,139.68,20.0]
[1726265658155,6.2941,139.74,139.68,20.6273693]
[1726265659476,6.2941,139.74,139.68,20.0]